bitfinex/quotes_BTCUSD_20250723
["timestamp","ask_amount","ask_price","bid_price","bid_amount"]
[1753264108587,0.28748802,118240.0,118230.0,0.97521312]
[1753264109360,0.28748802,118240.0,118230.0,0.67631312]
[1753264109577,0.17761989,118230.0,118220.0,0.72027332]
[1753264109785,0.18607776,118230.0,118220.0,0.53418]
[1753264109995,0.36727776,118230.0,118220.0,0.6339]
[1753264110209,0.60175506,118230.0,118220.0,0.20308]
[1753264110414,6.00681767,118230.0,118220.0,0.20308]
[1753264110625,6.00681767,118230.0,118220.0,0.335]
[1753264111040,6.00690096,118230.0,118220.0,0.335]
[1753264111660,6.00788634,118230.0,118220.0,0.335]
[1753264111863,6.00788634,118230.0,118220.0,0.336]
[1753264112069,6.00792634,118230.0,118220.0,0.336]
[1753264112474,6.00792634,118230.0,118220.0,0.335]
[1753264112690,6.00892634,118230.0,118220.0,0.335]
[1753264113311,6.03733534,118230.0,118220.0,0.335]
[1753264114154,6.03733534,118230.0,118220.0,0.50417611]
[1753264114362,6.00593534,118230.0,118220.0,0.335]
[1753264114785,6.00593305,118230.0,118220.0,0.335]
[1753264115007,6.00593305,118230.0,118220.0,0.79888874]
[1753264115248,6.00293305,118230.0,118220.0,0.80734733]
[1753264115474,0.76102876,118230.0,118220.0,0.860194]
[1753264115690,0.76948677,118230.0,118220.0,0.860194]
[1753264116328,0.93864857,118230.0,118220.0,0.84327733]
[1753264116588,0.93019091,118230.0,118220.0,0.84327733]
[1753264116796,0.93019091,118230.0,118220.0,0.8432774]
[1753264117029,0.93019091,118230.0,118220.0,0.85173584]
[1753264117241,0.93019113,118230.0,118220.0,0.8432774]
[1753264117651,0.92173319,118230.0,118220.0,0.83481874]
[1753264117999,0.92173319,118230.0,118220.0,0.85173599]
[1753264118207,0.45257067,118230.0,118220.0,0.9015528]
[1753264118429,0.42892497,118230.0,118220.0,0.9015528]
[1753264118638,0.4289249,118230.0,118220.0,0.9015528]
[1753264119026,0.43738284,118230.0,118220.0,0.9015528]
[1753264119421,0.60654464,118230.0,118220.0,0.9015528]
[1753264119580,0.63076806,118230.0,118220.0,0.9015528]
[1753264119951,0.61385275,118230.0,118220.0,0.6571839]
[1753264120962,0.61385275,118230.0,118220.0,0.82636001]
[1753264121192,0.61385275,118230.0,118220.0,0.83481874]
[1753264121405,0.61385275,118230.0,118220.0,0.84327725]
[1753264121632,0.61327241,118230.0,118220.0,0.6571839]
[1753264121846,0.79129481,118230.0,118220.0,0.20308]
[1753264122057,0.83217234,118230.0,118220.0,0.33528]
[1753264122696,0.82429481,118230.0,118220.0,0.33524]
[1753264122913,0.97429481,118230.0,118220.0,0.33524]
[1753264123130,0.98217244,118230.0,118220.0,0.33524]
[1753264123368,0.9821624,118230.0,118220.0,0.33524]
[1753264124442,0.9821624,118230.0,118220.0,0.20308]
[1753264124710,0.9821624,118230.0,118220.0,0.33524]
[1753264125726,0.9821624,118230.0,118220.0,0.33516]
[1753264125941,0.9821624,118230.0,118220.0,0.20308]
[1753264126145,6.40009987,118230.0,118220.0,0.20308]
[1753264126390,6.37807079,118230.0,118220.0,0.33512]
[1753264126604,6.3721624,118230.0,118220.0,0.33512]
[1753264127450,1.3221624,118230.0,118220.0,0.33512]
[1753264127670,6.3721624,118230.0,118220.0,0.33512]
[1753264129394,6.37807193,118230.0,118220.0,0.33512]
[1753264129810,6.3721624,118230.0,118220.0,0.33512]
[1753264130243,6.37807193,118230.0,118220.0,0.33512]
[1753264130959,6.71040794,118230.0,118220.0,0.20308]
[1753264131155,6.71040794,118230.0,118180.0,0.20442336]
[1753264131156,0.17767993,118190.0,118180.0,0.52967639]
[1753264131448,0.17767993,118190.0,118180.0,0.7518239]
[1753264131970,0.17767993,118190.0,118170.0,0.8117685]
[1753264131971,0.72769503,118180.0,118170.0,0.8117685]
[1753264132241,0.73615648,118180.0,118170.0,0.77560081]
[1753264132465,0.74461757,118180.0,118170.0,0.99536612]
[1753264132678,0.74461757,118180.0,118170.0,0.80919389]
[1753264132890,0.77161684,118180.0,118170.0,0.93690389]
[1753264133106,0.55846102,118180.0,118170.0,1.0122901]
[1753264133351,0.56692218,118180.0,118170.0,1.0122901]
[1753264133554,0.77003486,118180.0,118170.0,0.7260362]
[1753264133789,0.77003486,118180.0,118170.0,1.0122901]
[1753264133999,0.58387902,118180.0,118170.0,1.0122901]
[1753264134212,0.58387902,118180.0,118170.0,0.7260362]
[1753264134423,0.59234018,118180.0,118170.0,0.8792101]
[1753264134640,0.59234018,118180.0,118170.0,1.0132901]
[1753264134864,0.59234018,118180.0,118170.0,1.0133701]
[1753264135071,0.77849638,118180.0,118170.0,0.72711627]
[1753264135257,0.77849631,118180.0,118170.0,1.02183205]
[1753264135480,0.77849631,118180.0,118170.0,0.94625326]
[1753264135689,0.78695797,118180.0,118170.0,0.93779131]
[1753264135910,0.77849631,118180.0,118170.0,0.94625347]
[1753264136143,0.7869579,118180.0,118170.0,0.95471549]
[1753264136350,0.77849631,118180.0,118170.0,0.95471477]
[1753264136587,0.77849631,118180.0,118170.0,0.95673477]
[1753264137182,0.77849631,118180.0,118170.0,0.94827289]
[1753264137382,0.77003486,118180.0,118170.0,0.93981094]
[1753264137619,0.78695776,118180.0,118170.0,0.94827289]
[1753264137803,0.7869584,118180.0,118170.0,0.93134892]
[1753264138014,0.77849674,118180.0,118170.0,0.93981094]
[1753264138427,0.79423322,118180.0,118170.0,0.93981094]
[1753264138866,0.79423329,118180.0,118170.0,0.93134892]
[1753264139063,0.79423329,118180.0,118170.0,0.87288705]
[1753264139269,0.78577213,118180.0,118170.0,0.57911698]
[1753264139484,0.77929082,118180.0,118170.0,0.70700698]
[1753264139696,0.85530674,118180.0,118170.0,0.23771308]
[1753264139961,0.49069674,118180.0,118170.0,0.33761308]
[1753264140201,0.48770674,118180.0,118170.0,0.33761308]
[1753264140420,0.46178812,118180.0,118170.0,0.83662698]
[1753264140641,0.46178812,118180.0,118170.0,0.93495102]
[1753264140853,0.44705164,118180.0,118170.0,0.91802698]
[1753264141066,0.44805164,118180.0,118170.0,0.91802698]
[1753264141286,0.44805164,118180.0,118170.0,0.93495138]
[1753264141502,0.44805164,118180.0,118170.0,0.74877936]
[1753264141710,0.44805164,118180.0,118170.0,0.75724167]
[1753264141930,0.44805164,118180.0,118170.0,0.92648936]
[1753264142127,0.44805164,118180.0,118170.0,0.87648936]
[1753264142341,0.43310867,118180.0,118170.0,0.65891698]
[1753264142551,0.43310867,118180.0,118170.0,0.52278698]
[1753264142762,0.43310867,118180.0,118170.0,0.65582698]
[1753264142974,0.46370867,118180.0,118170.0,0.33665308]
[1753264143418,0.46370867,118180.0,118170.0,0.36805308]
[1753264143629,0.47944515,118180.0,118170.0,0.36805308]
[1753264143856,0.46576812,118180.0,118170.0,0.5680174]
[1753264144083,0.46378812,118180.0,118170.0,0.8542713]
[1753264144292,0.46378812,118180.0,118170.0,0.9042713]
[1753264144505,0.27881827,118180.0,118170.0,0.92119513]
[1753264144703,0.28727907,118180.0,118170.0,0.92119513]
[1753264145158,0.28727907,118180.0,118170.0,0.95119513]
[1753264145624,0.29574059,118180.0,118170.0,0.95119513]
[1753264145838,0.027418,118180.0,118170.0,0.95119513]
[1753264146049,0.027418,118180.0,118170.0,1.01831204]
[1753264146267,0.03587902,118180.0,118170.0,1.01831204]
[1753264146891,0.04434018,118180.0,118170.0,1.01831204]
[1753264147097,0.05280149,118180.0,118170.0,1.01831204]
[1753264147303,0.04434018,118180.0,118170.0,1.01831204]
[1753264147511,0.03587902,118180.0,118170.0,1.01831204]
[1753264147759,0.06126258,118180.0,118170.0,1.31721204]
[1753264148148,0.04434011,118180.0,118170.0,1.31721204]
[1753264148673,0.03587902,118180.0,118170.0,1.31721204]
[1753264148884,0.002,118180.0,118170.0,1.31721204]
[1753264149314,0.002,118180.0,118170.0,1.18417204]
[1753264149529,0.18715598,118180.0,118170.0,1.11705513]
[1753264149747,0.19561722,118180.0,118170.0,1.24151332]
[1753264149958,0.20507874,118180.0,118170.0,1.05320705]
[1753264150197,0.27361364,118180.0,118170.0,1.13608705]
[1753264150413,0.27261364,118180.0,118170.0,1.19132936]
[1753264150618,0.27261364,118180.0,118170.0,1.21247376]
[1753264150841,0.27261364,118180.0,118170.0,1.2040116]
[1753264151261,0.27261364,118180.0,118170.0,1.16247376]
[1753264151487,0.27261364,118180.0,118170.0,1.22093585]
[1753264151740,0.27261364,118180.0,118170.0,0.98400705]
[1753264151938,0.27261364,118180.0,118170.0,1.0009316]
[1753264152090,0.27261364,118180.0,118170.0,1.00939376]
[1753264152847,0.27261364,118180.0,118170.0,1.01785585]
[1753264153069,0.27063364,118180.0,118170.0,1.00939376]
[1753264153615,0.27063364,118180.0,118170.0,0.71895585]
[1753264153798,0.27909523,118180.0,118170.0,0.70203138]
[1753264154031,0.30451394,118180.0,118170.0,0.70203138]
[1753264154261,0.3129756,118180.0,118170.0,0.68510698]
[1753264154843,0.3129756,118180.0,118170.0,0.52432167]
[1753264155059,0.3129756,118180.0,118170.0,0.69356936]
[1753264155060,0.30451437,118180.0,118170.0,0.69356936]
[1753264155289,0.30451437,118180.0,118170.0,0.71049376]
[1753264155494,0.32025085,118180.0,118170.0,0.71049376]
[1753264155729,0.32025085,118180.0,118170.0,0.7020316]
[1753264155875,0.32025085,118180.0,118170.0,0.69356936]
[1753264156084,0.32025085,118180.0,118170.0,0.71049376]
[1753264156646,0.32025085,118180.0,118170.0,0.7020316]
[1753264156812,0.32025085,118180.0,118170.0,0.71049369]
[1753264157006,0.29483185,118180.0,118170.0,0.7020316]
[1753264157217,0.29483185,118180.0,118170.0,0.71049376]
[1753264157393,0.27909537,118180.0,118170.0,0.6520316]
[1753264157619,0.27909537,118180.0,118170.0,0.4157777]
[1753264157797,0.27909537,118180.0,118170.0,0.7020316]
[1753264158399,0.29483185,118180.0,118170.0,0.71049376]
[1753264159260,0.2863704,118180.0,118170.0,0.69356929]
[1753264159508,0.27790881,118180.0,118170.0,0.46561929]
[1753264160128,0.27790881,118180.0,118170.0,0.64332914]
[1753264160343,0.27790881,118180.0,118170.0,0.46561936]
[1753264160558,0.27790881,118180.0,118170.0,0.50715698]
[1753264160754,0.27790881,118180.0,118170.0,0.46561936]
[1753264160986,0.27793256,118180.0,118170.0,0.34861315]
[1753264161171,0.27793256,118180.0,118170.0,0.69332936]
[1753264161437,0.27793235,118180.0,118170.0,0.71025347]
[1753264161659,0.30331605,118180.0,118170.0,0.75011535]
[1753264161868,0.30331612,118180.0,118170.0,0.73319152]
[1753264162081,0.30331612,118180.0,118170.0,0.75011549]
[1753264162297,0.12562116,118180.0,118170.0,0.75011499]
[1753264162507,0.30331612,118180.0,118170.0,0.72472914]
[1753264162764,0.12562116,118180.0,118170.0,0.74165304]
[1753264162973,0.11715978,118180.0,118170.0,0.74165304]
[1753264163198,0.12562123,118180.0,118170.0,0.74165304]
[1753264163410,0.13408275,118180.0,118170.0,0.74165304]
[1753264163901,0.14254434,118180.0,118170.0,0.74165304]
[1753264164211,0.31177771,118180.0,118170.0,0.74165304]
[1753264164868,0.12562116,118180.0,118170.0,0.74165304]
[1753264165080,0.13408268,118180.0,118170.0,0.74165304]
[1753264165879,0.30331605,118180.0,118170.0,0.71025304]
[1753264166097,0.31177764,118180.0,118170.0,0.42399914]
[1753264166302,0.30331662,118180.0,118170.0,0.35707524]
[1753264166533,0.30331705,118180.0,118170.0,0.41553726]
[1753264166769,0.30331705,118180.0,118170.0,0.70179116]
[1753264167010,0.30331705,118180.0,118170.0,0.71025311]
[1753264167224,0.29485539,118180.0,118170.0,0.71025311]
[1753264167429,0.11716043,118180.0,118170.0,0.71871499]
[1753264167650,0.29485539,118180.0,118170.0,0.71871499]
[1753264167857,0.30331705,118180.0,118170.0,0.71025311]
[1753264168480,0.30331705,118180.0,118170.0,0.70179116]
[1753264168947,0.30331705,118180.0,118170.0,0.71025304]
[1753264170264,0.29485539,118180.0,118170.0,0.71025304]
[1753264170822,0.10869869,118180.0,118170.0,0.74345304]
[1753264170858,0.12562138,118180.0,118170.0,0.74345304]
[1753264171052,0.10986115,118180.0,118170.0,0.74345304]
[1753264171257,0.10871984,118180.0,118170.0,0.74345304]
[1753264171455,0.03270377,118180.0,118170.0,0.69345304]
[1753264171679,0.04116515,118180.0,118170.0,0.74345304]
[1753264172327,0.03270377,118180.0,118170.0,0.74345304]
[1753264172565,0.02424254,118180.0,118170.0,0.74345304]
[1753264172836,0.03270392,118180.0,118170.0,0.74345304]
[1753264173098,0.03270385,118180.0,118170.0,0.45719914]
[1753264173302,0.03270385,118180.0,118170.0,0.74345304]
[1753264173513,0.0411653,118180.0,118170.0,0.74345304]
[1753264174323,0.03270428,118180.0,118170.0,0.74345304]
[1753264174555,0.04116573,118180.0,118170.0,0.74345304]
[1753264174770,0.0327042,118180.0,118170.0,0.74345304]
[1753264175212,0.02424297,118180.0,118170.0,0.74345304]
[1753264175424,0.03270428,118180.0,118170.0,0.74345304]
[1753264175871,0.01578181,118180.0,118170.0,0.74345304]
[1753264176085,0.02424297,118180.0,118170.0,0.74345304]
[1753264176509,0.00846116,118180.0,118170.0,0.74345304]
[1753264176958,0.23280325,118190.0,118180.0,0.22701771]
[1753264177173,0.16578181,118190.0,118180.0,0.68628277]
[1753264177385,0.16578181,118190.0,118180.0,1.03816277]
[1753264177592,0.15,118190.0,118180.0,1.03816277]
[1753264177799,0.17745854,118190.0,118180.0,1.03816277]
[1753264178256,0.17845854,118190.0,118180.0,1.03816277]
[1753264178705,0.17945854,118190.0,118180.0,1.03816277]
[1753264178922,0.152,118190.0,118180.0,1.03816277]
[1753264179653,0.002,118190.0,118180.0,0.73926277]
[1753264180071,0.002,118190.0,118180.0,1.40889397]
[1753264180281,0.002,118190.0,118180.0,1.49337127]
[1753264180503,0.002,118190.0,118180.0,1.51090029]
[1753264181298,0.4,118210.0,118180.0,1.47705479]
[1753264181502,0.4,118210.0,118200.0,0.82859237]
[1753264181709,0.4,118210.0,118200.0,0.96302237]
[1753264181917,0.4,118210.0,118200.0,0.72974847]
[1753264182122,0.41044887,118210.0,118200.0,0.28107457]
[1753264182336,0.43582634,118210.0,118200.0,0.69964847]
[1753264182489,0.4273669,118210.0,118200.0,0.69964847]
[1753264182712,0.4253769,118210.0,118200.0,0.69964847]
[1753264182922,0.42537697,118210.0,118200.0,0.70164847]
[1753264183335,0.42537697,118210.0,118200.0,0.70264847]
[1753264183551,0.41691781,118210.0,118200.0,0.70264847]
[1753264183768,0.42537697,118210.0,118200.0,0.70064847]
[1753264184603,0.43383627,118210.0,118200.0,0.69964847]
[1753264184831,0.42537697,118210.0,118200.0,0.69964847]
[1753264185122,0.42537697,118210.0,118200.0,0.70064847]
[1753264185710,0.43383627,118210.0,118200.0,0.70064847]
[1753264185944,0.60302676,118210.0,118200.0,0.56832847]
[1753264186147,0.61032704,118210.0,118200.0,0.99954847]
[1753264186346,0.61878634,118210.0,118200.0,0.99954847]
[1753264186513,0.44959592,118210.0,118200.0,0.99954847]
[1753264186722,0.43383627,118210.0,118200.0,0.99954847]
[1753264187212,0.42537697,118210.0,118200.0,0.99954847]
[1753264187939,0.43383627,118210.0,118200.0,0.99954847]
[1753264188120,0.60302669,118210.0,118200.0,0.99942847]
[1753264188335,0.61878634,118210.0,118200.0,0.99942847]
[1753264188756,0.61878634,118210.0,118200.0,0.85030879]
[1753264188950,0.61878634,118210.0,118200.0,1.00788834]
[1753264189732,0.61875891,118210.0,118200.0,1.00788834]
[1753264190473,0.62721828,118210.0,118200.0,1.00788834]
[1753264190993,0.44956849,118210.0,118200.0,1.00788834]
[1753264191222,0.43383627,118210.0,118200.0,1.00788834]
[1753264191861,0.42537683,118210.0,118200.0,1.03928834]
[1753264192488,0.40845887,118210.0,118200.0,1.03928834]
[1753264192707,0.4,118210.0,118200.0,1.32554224]
[1753264193808,0.39977583,118210.0,118200.0,1.32554224]
[1753264195773,0.39977583,118210.0,118200.0,1.41001954]
[1753264196227,0.39977583,118210.0,118200.0,1.32554224]
[1753264202364,0.39977583,118210.0,118200.0,1.35038411]
[1753264206684,0.39977583,118210.0,118200.0,1.35029838]
[1753264208154,0.39977583,118210.0,118200.0,1.1533247]
[1753264208584,0.39977583,118210.0,118200.0,1.0211247]
[1753264208795,0.39977583,118210.0,118200.0,1.1532847]
[1753264209222,0.39977583,118210.0,118200.0,1.1522847]
[1753264209658,0.39977583,118210.0,118200.0,1.1552847]
[1753264210065,0.39977583,118210.0,118200.0,1.0231247]
[1753264210270,0.39977583,118210.0,118200.0,1.1572847]
[1753264210702,0.39977583,118210.0,118200.0,0.35069058]
[1753264210901,0.39977583,118210.0,118200.0,1.02395838]
[1753264211123,0.39977583,118210.0,118200.0,1.05565838]
[1753264211877,0.39977583,118210.0,118200.0,1.25877838]
[1753264218665,0.39977583,118210.0,118200.0,1.55767838]
[1753264219710,0.39977583,118210.0,118200.0,1.52597838]
[1753264221605,0.39977583,118210.0,118200.0,1.5762274]
[1753264221815,0.31573522,118220.0,118210.0,0.32311713]
[1753264222038,0.3,118220.0,118210.0,1.12693833]
[1753264222258,0.3,118220.0,118210.0,1.13013833]
[1753264223137,0.3,118220.0,118210.0,1.15493822]
[1753264223372,0.7,118220.0,118210.0,1.24041552]
[1753264223595,0.71573522,118220.0,118210.0,1.24041552]
[1753264224065,0.71573522,118220.0,118210.0,1.15593822]
[1753264224510,0.71573522,118220.0,118210.0,1.13228619]
[1753264227636,0.31573522,118220.0,118210.0,1.13228619]
[1753264227881,0.3,118220.0,118210.0,1.13228619]
[1753264230327,0.3,118220.0,118210.0,1.10208619]
[1753264230546,0.3,118220.0,118210.0,0.81583229]
[1753264230751,0.3,118220.0,118210.0,1.10208619]
[1753264231166,0.3,118220.0,118210.0,0.86799987]
[1753264231377,0.33268,118220.0,118210.0,0.91593987]
[1753264232189,0.33268,118220.0,118210.0,0.96593987]
[1753264232400,0.33268,118220.0,118210.0,0.91593987]
[1753264232632,0.33268,118220.0,118210.0,0.99946987]
[1753264232831,0.3,118220.0,118210.0,0.99946987]
[1753264233226,0.3,118220.0,118210.0,1.05943882]
[1753264234050,0.3,118220.0,118210.0,0.99946987]
[1753264234286,0.33278,118220.0,118210.0,0.96916987]
[1753264234848,0.33278,118220.0,118210.0,1.00076987]
[1753264235055,0.30198,118220.0,118210.0,1.00076987]
[1753264235250,0.30198,118220.0,118210.0,1.00096987]
[1753264235454,0.30198,118220.0,118210.0,0.86872987]
[1753264235643,0.30198,118220.0,118210.0,1.00096987]
[1753264238717,0.3,118220.0,118210.0,1.03336987]
[1753264240301,0.3,118220.0,118210.0,1.13529619]
[1753264240519,0.3,118220.0,118210.0,1.14740989]
[1753264241254,4e-05,118230.0,118220.0,0.25705165]
[1753264241460,4e-05,118230.0,118220.0,0.72767555]
[1753264241694,4e-05,118230.0,118220.0,0.73090555]
[1753264241914,4e-05,118230.0,118220.0,1.03460847]
[1753264242183,4e-05,118230.0,118220.0,1.41798577]
[1753264243218,4e-05,118230.0,118220.0,1.50246307]
[1753264243947,4e-05,118230.0,118220.0,1.41798577]
[1753264244176,4e-05,118230.0,118220.0,1.42098577]
[1753264244418,4e-05,118230.0,118220.0,1.76098577]
[1753264245356,4e-05,118230.0,118220.0,1.76298577]
[1753264248682,4e-05,118230.0,118220.0,1.47669187]
[1753264249046,4e-05,118230.0,118220.0,1.26454285]
[1753264249314,0.03292,118230.0,118220.0,0.91903555]
[1753264249514,0.04137751,118230.0,118220.0,0.91690555]
[1753264249721,0.04137751,118230.0,118220.0,0.78470555]
[1753264249880,0.08173517,118230.0,118220.0,0.91694555]
[1753264250083,0.07327751,118230.0,118220.0,0.91694555]
[1753264250293,0.07626751,118230.0,118220.0,0.78470555]
[1753264250462,0.07626751,118230.0,118220.0,1.12002555]
[1753264250928,0.07327751,118230.0,118220.0,1.12002555]
[1753264251142,0.07327751,118230.0,118220.0,0.83377165]
[1753264251345,0.08173524,118230.0,118220.0,1.12002555]
[1753264251563,0.08472524,118230.0,118220.0,1.12002555]
[1753264251969,0.07626751,118230.0,118220.0,1.12002555]
[1753264252088,0.07626744,118230.0,118220.0,0.98778555]
[1753264252303,0.09318275,118230.0,118220.0,1.12010555]
[1753264252721,0.09318275,118230.0,118220.0,1.11510555]
[1753264252925,0.08472502,118230.0,118220.0,1.11510555]
[1753264253143,0.07626744,118230.0,118220.0,1.11610555]
[1753264253374,0.07327744,118230.0,118220.0,1.16610555]
[1753264253585,0.04137744,118230.0,118220.0,1.16610555]
[1753264253820,0.04137744,118230.0,118220.0,1.11610555]
[1753264254049,0.04137744,118230.0,118220.0,1.11710555]
[1753264254258,0.04137744,118230.0,118220.0,1.16710555]
[1753264254845,0.04137744,118230.0,118220.0,1.11710555]
[1753264255067,0.04983495,118230.0,118220.0,1.11706555]
[1753264255297,0.04137744,118230.0,118220.0,1.11706555]
[1753264255506,0.04137744,118230.0,118220.0,1.16706555]
[1753264256154,0.04137744,118230.0,118220.0,1.11706555]
[1753264256894,0.03292,118230.0,118220.0,1.11706555]
[1753264257078,0.03292,118230.0,118220.0,1.16706555]
[1753264257959,0.04137751,118230.0,118220.0,1.16706555]
[1753264258126,0.03292,118230.0,118220.0,1.16706555]
[1753264258365,0.04137744,118230.0,118220.0,1.16706555]
[1753264259576,0.04137744,118230.0,118220.0,1.11706555]
[1753264260495,0.03292,118230.0,118220.0,1.11706555]
[1753264260622,0.03292,118230.0,118220.0,1.16706555]
[1753264261040,0.04137744,118230.0,118220.0,1.16706555]
[1753264261450,0.04137744,118230.0,118220.0,1.11919555]
[1753264261646,0.04137744,118230.0,118220.0,1.17242555]
[1753264262160,0.03292,118230.0,118220.0,1.17242555]
[1753264262998,0.04137744,118230.0,118220.0,1.17242555]
[1753264263687,0.03292,118230.0,118220.0,1.17242555]
[1753264264162,0.00202,118230.0,118220.0,1.20392555]
[1753264264467,4e-05,118230.0,118220.0,1.20392555]
[1753264267244,0.03264,118230.0,118220.0,1.20392555]
[1753264270336,0.04109744,118230.0,118220.0,1.15392555]
[1753264270527,0.04307751,118230.0,118220.0,1.12242555]
[1753264270790,0.05153509,118230.0,118220.0,1.11706555]
[1753264271015,0.04307758,118230.0,118220.0,1.11706555]
[1753264271217,0.03462,118230.0,118220.0,1.16706555]
[1753264271451,0.04307751,118230.0,118220.0,1.16706555]
[1753264271656,0.05153509,118230.0,118220.0,1.11706555]
[1753264271862,0.03462,118230.0,118220.0,1.11706555]
[1753264272046,0.03462,118230.0,118220.0,1.17010555]
[1753264272250,0.03462,118230.0,118220.0,1.17205555]
[1753264275080,0.04307751,118230.0,118220.0,1.12205555]
[1753264275449,0.05153517,118230.0,118220.0,1.12205555]
[1753264275851,0.04307751,118230.0,118220.0,1.12205555]
[1753264276459,0.05153524,118230.0,118220.0,1.12205555]
[1753264276661,0.03462,118230.0,118220.0,1.12205555]
[1753264277257,0.04307744,118230.0,118220.0,1.12205555]
[1753264277719,0.05153502,118230.0,118220.0,1.12205555]
[1753264278921,0.04307744,118230.0,118220.0,1.12205555]
[1753264279272,0.03462,118230.0,118220.0,1.17205555]
[1753264281328,0.03462,118230.0,118220.0,1.20205555]
[1753264281329,0.03264,118230.0,118220.0,1.20205555]
[1753264281749,4e-05,118230.0,118220.0,1.20205555]
[1753264282258,0.40004,118230.0,118220.0,1.20205555]
[1753264283231,0.40004,118230.0,118220.0,1.15205555]
[1753264283654,0.40004,118230.0,118220.0,1.20205555]
[1753264284412,0.40849744,118230.0,118220.0,1.20205555]
[1753264284618,0.40004,118230.0,118220.0,1.20205555]
[1753264286554,0.40004,118230.0,118220.0,1.15205555]
[1753264286741,0.40004,118230.0,118220.0,1.20205555]
[1753264289241,0.40004,118230.0,118220.0,1.50980403]
[1753264289457,0.40004,118230.0,118220.0,1.55980403]
[1753264297536,4e-05,118230.0,118220.0,1.55980403]
[1753264304138,4e-05,118230.0,118220.0,1.59180403]
[1753264304349,4e-05,118230.0,118220.0,1.67628133]
[1753264305495,1e-08,118240.0,118230.0,0.27498421]
[1753264305716,1e-08,118240.0,118230.0,1.91661199]
[1753264305944,1e-08,118240.0,118230.0,1.91955199]
[1753264306164,1e-08,118240.0,118230.0,2.00402929]
[1753264307026,1e-08,118240.0,118230.0,2.00802929]
[1753264307450,1e-08,118240.0,118230.0,2.01002929]
[1753264307924,1e-08,118240.0,118230.0,2.00802929]
[1753264308317,1e-08,118240.0,118230.0,2.00402929]
[1753264308527,1e-08,118240.0,118230.0,2.00902929]
[1753264308741,1e-08,118240.0,118230.0,2.01202929]
[1753264309370,1e-08,118240.0,118230.0,1.6181046]
[1753264309786,1e-08,118240.0,118230.0,1.55098769]
[1753264310242,1e-08,118240.0,118230.0,1.46651039]
[1753264310453,1e-08,118240.0,118230.0,1.76537039]
[1753264311702,1e-08,118240.0,118230.0,1.63341039]
[1753264311915,1e-08,118240.0,118230.0,1.76537039]
[1753264314008,1e-08,118240.0,118230.0,1.46647039]
[1753264314432,1e-08,118240.0,118230.0,1.6180646]
[1753264319248,0.40004,118270.0,118260.0,0.29503487]
[1753264319467,0.40004,118270.0,118260.0,1.1013016]
[1753264320577,0.43504781,118270.0,118260.0,1.0682016]
[1753264320785,0.46664781,118270.0,118260.0,0.96130528]
[1753264320995,0.46957781,118270.0,118260.0,0.96130528]
[1753264321429,0.46664781,118270.0,118260.0,0.96330528]
[1753264322142,0.43504781,118270.0,118260.0,1.04778258]
[1753264322373,0.43504781,118270.0,118260.0,1.07360837]
[1753264322593,0.43504781,118270.0,118260.0,0.98913107]
[1753264323522,0.43308781,118270.0,118260.0,0.98913107]
[1753264329392,0.43308781,118270.0,118260.0,1.19217107]
[1753264339284,0.43308781,118270.0,118260.0,1.19208962]
[1753264339997,0.43308781,118270.0,118260.0,1.20208962]
[1753264343402,0.43308781,118270.0,118260.0,0.91605018]
[1753264343622,0.43308781,118270.0,118260.0,1.20208962]
[1753264346261,0.44154239,118270.0,118260.0,1.07020962]
[1753264346470,0.48209719,118270.0,118260.0,1.15196962]
[1753264346677,0.49788212,118270.0,118260.0,1.14359563]
[1753264346893,0.50633699,118270.0,118260.0,1.20205107]
[1753264347106,0.514792,118270.0,118260.0,1.15205107]
[1753264347279,0.50633699,118270.0,118260.0,1.23686516]
[1753264347521,0.514792,118270.0,118260.0,1.18686516]
[1753264347709,0.514792,118270.0,118260.0,1.50871869]
[1753264347915,0.50633699,118270.0,118260.0,1.50871869]
[1753264348115,0.50633699,118270.0,118260.0,1.35567869]
[1753264348544,0.50633699,118270.0,118260.0,1.30567869]
[1753264348757,0.514792,118270.0,118260.0,1.30467869]
[1753264349304,0.514792,118270.0,118260.0,0.94704736]
[1753264349927,0.68389659,118270.0,118260.0,0.94704736]
[1753264350143,0.69235167,118270.0,118260.0,0.94704736]
[1753264350354,0.69235224,118270.0,118260.0,0.99704736]
[1753264350568,0.52324765,118270.0,118260.0,0.94704736]
[1753264351271,0.49788241,118270.0,118260.0,0.99704736]
[1753264351493,0.50633742,118270.0,118260.0,0.99704736]
[1753264351940,0.50633742,118270.0,118260.0,0.94704736]
[1753264352236,0.50633742,118270.0,118260.0,0.99704736]
[1753264352573,0.5147925,118270.0,118260.0,0.94704736]
[1753264352776,0.69235231,118270.0,118260.0,0.94704736]
[1753264353007,0.5147925,118270.0,118260.0,0.94704736]
[1753264353204,0.69235231,118270.0,118260.0,0.94704736]
[1753264353411,0.69235231,118270.0,118260.0,0.9470475]
[1753264353660,0.68389751,118270.0,118260.0,0.9470475]
[1753264353883,0.81698763,118270.0,118260.0,0.65247648]
[1753264354089,0.41698763,118270.0,118260.0,0.46644578]
[1753264354296,0.39274762,118270.0,118260.0,0.46644578]
[1753264354713,0.39274762,118270.0,118260.0,0.16754579]
[1753264355122,0.39274762,118270.0,118260.0,0.21754579]
[1753264355323,0.39274762,118270.0,118260.0,0.16754579]
[1753264355534,0.47722492,118270.0,118260.0,0.14168]
[1753264355729,0.49300985,118270.0,118260.0,0.14168]
[1753264358168,0.47722492,118270.0,118260.0,0.14168]
[1753264358386,0.47722492,118270.0,118260.0,0.19168]
[1753264358602,0.493018,118270.0,118260.0,0.19168]
[1753264358800,0.47722492,118270.0,118260.0,0.19168]
[1753264359224,0.49301794,118270.0,118260.0,0.19168]
[1753264359819,0.49301794,118270.0,118260.0,0.06]
[1753264360035,0.49301795,118270.0,118260.0,0.19168]
[1753264361615,0.49301606,118270.0,118260.0,0.19168]
[1753264363551,0.49301606,118270.0,118260.0,0.14168]
[1753264363767,0.49301606,118270.0,118260.0,0.19168]
[1753264364560,0.49301606,118270.0,118260.0,0.36079889]
[1753264364764,0.49301606,118270.0,118260.0,0.22911889]
[1753264364930,0.49301606,118270.0,118260.0,0.36079889]
[1753264365367,0.49301606,118270.0,118260.0,0.36925476]
[1753264365694,0.48456084,118270.0,118260.0,0.65533042]
[1753264365901,0.46937071,118270.0,118260.0,0.663786]
[1753264366102,0.45357957,118270.0,118260.0,0.694186]
[1753264366335,0.41222492,118270.0,118260.0,0.68573042]
[1753264366660,0.44492492,118270.0,118260.0,0.68573042]
[1753264367037,0.44492492,118270.0,118260.0,0.63573042]
[1753264367272,0.4364697,118270.0,118260.0,0.65533042]
[1753264368340,0.4364697,118270.0,118260.0,0.47775573]
[1753264368552,0.4669697,118270.0,118260.0,0.47775573]
[1753264368955,0.4669697,118270.0,118260.0,0.19168]
[1753264370027,0.4669697,118270.0,118260.0,0.14164]
[1753264370207,0.4698997,118270.0,118260.0,0.14164]